Cogmind - Beta 13 X1 @@@ ROGUE MODE // 2023.11.08 @ 10:08:01 Player: VR-DUX Result: Destroyed by W0-WCD(R) with Subdweller Laser Performance ------------- Evolutions (0) 0 Regions Visited (3) 600 Robots Destroyed (32) 160 Value Destroyed (602) 602 Prototype IDs (0) 0 Alien Tech Used (0) 0 Bonus (0) 0 TOTAL SCORE: 1362 Bonus ------- None Cogmind --------- Core Integrity 0/250 Matter 274/300 Energy 12/100 System Corruption 0% Temperature Cool (6) Movement Treading (240) Ox1 Location -10/Subcaves Parts ------- > --- POWER (1) -------- (None) > --- PROPULSION (2) --- Light Treads > --- UTILITY (2) ------ Large Storage Unit Structural Scanner > --- WEAPON (2) ------- Heavy EM Pulse Gun > --- INVENTORY (15) --- Light Ion Engine Light Treads Light Treads Light Treads Compact Wheel Medium Storage Unit Structural Scanner Sensor Array Signal Interpreter Heavy EM Pulse Gun Light Assault Rifle Grenade Launcher Mining Laser Peak State ------------ > --- POWER ------------ Ion Engine > --- PROPULSION ------- Aluminum Leg Aluminum Leg > --- UTILITY ---------- Large Storage Unit Structural Scanner > --- WEAPON ----------- Assault Rifle Light Assault Rifle > --- INVENTORY -------- Light Ion Engine Light Treads Light Treads Light Treads Light Treads Wheel Compact Wheel Medium Storage Unit Sensor Array Signal Interpreter [Rating: 8] Favorites ----------- Power Light Ion Engine Engine Light Ion Engine Propulsion Light Treads Treads Light Treads Leg Aluminum Leg Utility Large Storage Unit Device Structural Scanner Storage Large Storage Unit Weapon Light Assault Rifle Energy Gun EM Pulse Gun Ballistic Gun Light Assault Rifle Ballistic Cannon Light Cannon Special Weapon Mining Laser Build | -11 -10 -10 -10 ------- Run | Jun Mat Min Sub Slots Evolved . | . . . . Power . | . . . . Propulsion . | . . . . Utility . | . . . . Weapon . | . . . . Parts Attached 20 | . 12 3 5 Power 4 | . 4 . . Engine 4 | . 4 . . Core . | . . . . Reactor . | . . . . Propulsion 5 | . 3 1 1 Treads 5 | . 3 1 1 Leg . | . . . . Wheel . | . . . . Hover . | . . . . Flight . | . . . . Utility 2 | . 2 . . Device 1 | . 1 . . Storage 1 | . 1 . . Processor . | . . . . Hackware . | . . . . Protection . | . . . . Artifact . | . . . . Weapon 9 | . 3 2 4 Energy Gun 2 | . . . 2 Energy Cannon . | . . . . Ballistic Gun 5 | . 3 1 1 Ballistic Cannon 1 | . . 1 . Launcher . | . . . . Special Weapon 1 | . . . 1 Impact Weapon . | . . . . Slashing Weapon . | . . . . Piercing Weapon . | . . . . Special Melee Weapon . | . . . . Unidentified Prototypes . | . . . . Parts Lost 8 | . 3 1 4 Power 2 | . 1 1 . Propulsion 2 | . . . 2 Utility . | . . . . Weapon 4 | . 2 . 2 Highest Loss Streak 4 | . 2 1 4 To Critical Strikes 1 | . . . 1 Average Slot Usage (%) 94 | . 97 94 83 Engine 9 | . 13 9 . Treads 20 | . 15 28 27 Leg 7 | . 12 . . Device 13 | . 12 14 14 Storage 14 | . 14 14 14 Energy Gun 1 | . 2 . 1 Ballistic Gun 22 | . 25 23 11 Ballistic Cannon 3 | . . 4 13 Naked Turns . | . . . . Heaviest Build 32 | 12 32 27 27 Greatest Support 40 | 20 40 40 40 Greatest Overweight (x) 1 | . 1 1 1 Average Overweight (x) . | . . . . Largest Inventory Capacity 15 | 8 15 15 15 Average Capacity 14 | 8 14 15 15 Most Carried 15 | 6 15 15 15 Average Carried 12 | 6 11 14 14 Final Capacity 15 | 8 15 15 15 Final Carried 15 | 6 15 15 13 Class Distribution -------------------- 100% | Mutant Dominant Class ---------------- Mutant | -10/Materials Mutant | -10/Mines Mutant | -10/Subcaves Resources | -11 -10 -10 -10 ----------- Run | Jun Mat Min Sub Matter Collected 767 | 200 442 59 66 Remotely . | . . . . Salvage Created 1132 | 101 780 117 134 Parts 90 | 4 67 8 11 Haulers Intercepted 2 | . 2 . . Recyclers Shooed 1 | . 1 . . Parts Field Recycled . | . . . . Retrieved Matter . | . . . . Parts Self-Destructed 4 | . . . 4 Prevented . | . . . . Kills | -11 -10 -10 -10 ------- Run | Jun Mat Min Sub Combat Hostiles Destroyed 18 | . 13 2 3 Guns 17 | . 13 2 2 Cannons 1 | . . . 1 Classes Destroyed 11 | 2 6 1 2 Worker 2 | . 2 . . Builder 3 | . 3 . . Tunneler 1 | 1 . . . Hauler 2 | . 2 . . Recycler 3 | 1 2 . . Watcher 3 | . 3 . . Swarmer 6 | . 6 . . Grunt 7 | . 7 . . Sentry 2 | . . 2 . Artisan 1 | . . . 1 Subdweller 3 | . . . 3 Best Kill Streak 4 | 2 4 2 2 Combat Bots Only 3 | . 3 2 2 Max Kills in Single Turn 2 | 1 2 1 1 Gunslinging . | . . . . Exploded . | . . . . Melee . | . . . . Uniques/NPCs Destroyed . | . . . . Combat | -11 -10 -10 -10 -------- Run | Jun Mat Min Sub Damage Taken 1518 | . 648 260 610 Core 255 | . 86 . 169 Absorbed by Shields . | . . . . Core Remaining (%) 100 | 100 . . . Volleys Fired 111 | 4 75 13 19 Largest 2 | 2 2 2 2 Hottest 100 | 60 60 40 100 Shots Fired 214 | 8 149 26 31 Gun 197 | 8 149 26 14 Cannon 15 | . . . 15 Launcher . | . . . . Special 2 | . . . 2 Kinetic 190 | 4 143 26 17 Thermal 2 | . . . 2 Explosive . | . . . . Electromagnetic 22 | 4 6 . 12 Robot Hit Streak 23 | 2 8 23 12 Robot Miss Streak 5 | 3 5 2 1 Penetration Max . | . . . . Secondary Targets 1 | . . 1 . Max Gunslinging Chain 1 | . . 1 . Shots Hit Robots 137 | 3 87 24 23 Core Hits 59 | 3 43 6 7 Critical Kills . | . . . . Critical Parts Destroyed 1 | . 1 . . Critical Strikes 1 | . 1 . . Destroy 1 | . 1 . . Melee Attacks . | . . . . Impact . | . . . . Slashing . | . . . . Piercing . | . . . . Sneak Attacks . | . . . . Combat Hostiles . | . . . . Follow-up Attacks . | . . . . Damage Inflicted 1674 | 37 1081 201 355 Guns 1459 | 37 1081 201 140 Cannons 215 | . . . 215 Explosions . | . . . . Melee . | . . . . Ramming . | . . . . Kinetic 1424 | . 1001 201 222 Thermal . | . . . . Explosive . | . . . . Electromagnetic 250 | 37 80 . 133 Impact . | . . . . Slashing . | . . . . Piercing . | . . . . Highest Corruption . | . . . . Average Corruption . | . . . . Corruption Purged . | . . . . Corruption Blocked . | . . . . Overload Shots . | . . . . Overflow Damage . | . . . . Projectiles . | . . . . Explosions . | . . . . Melee . | . . . . Knockbacks 3 | . . . 3 Impact . | . . . . Kinetic 3 | . . . 3 Secondary . | . . . . Self-Inflicted Damage . | . . . . Shots . | . . . . Rammed . | . . . . Targets Rammed . | . . . . Kicked . | . . . . Crushed . | . . . . Highest Temperature 84 | 20 84 22 . Average Temperature 24 | 20 28 14 . Received Heat Transfer 540 | . 306 108 126 Siege Activations . | . . . . Robots Corrupted . | . . . . Combat Hostiles . | . . . . Parts Fried . | . . . . Impact Corruptions . | . . . . Robots Melted . | . . . . Combat Hostiles . | . . . . Parts Melted . | . . . . Heat Transferred . | . . . . Parts Sabotaged . | . . . . Parts Stolen . | . . . . Parts Stripped . | . . . . Power Chain Reactions . | . . . . Missiles Intercepted . | . . . . Alert | -11 -10 -10 -10 ------- Run | Jun Mat Min Sub Peak Influence 212 | 10 212 79 . Initial 34 | . 6 34 . Average 60 | 5 72 28 . Maximum Alert Level 1 | . 1 . . Low Security (%) 95 | 100 93 100 . Level 1 4 | . 6 . . Level 2 . | . . . . Level 3 . | . . . . Level 4 . | . . . . Level 5 . | . . . . High Security . | . . . . Max Security . | . . . . Squads Dispatched 2 | . 2 . . Investigation 1 | . 1 . . Extermination . | . . . . Reinforcement 1 | . 1 . . Assault . | . . . . Garrison . | . . . . Intercept . | . . . . Searches Triggered . | . . . . Construction Impeded . | . . . . Haulers Reinforced . | . . . . Active Scanning Responses . | . . . . Cargo Convoy Interrupts . | . . . . Stealth | -11 -10 -10 -10 --------- Run | Jun Mat Min Sub Distress Signals . | . . . . Communications Jammed . | . . . . Distress Signals . | . . . . Times Spotted 31 | . 24 2 5 Peak Tracking Total 5 | . 5 2 2 Tactical Retreats . | . . . . Traps | -11 -10 -10 -10 ------- Run | Jun Mat Min Sub Traps Triggered 1 | . 1 . . Indirectly . | . . . . Trap Hack Attempts . | . . . . Triggered . | . . . . Disarmed . | . . . . Reprogrammed . | . . . . Reused . | . . . . Traps Extracted . | . . . . Installed . | . . . . Triggered . | . . . . Machines | -11 -10 -10 -10 ---------- Run | Jun Mat Min Sub Machines Disabled . | . . . . Max in Single Turn . | . . . . Machines Repaired . | . . . . Machines Sabotaged . | . . . . Overloaded Fab Kills . | . . . . Hacking | -11 -10 -10 -10 --------- Run | Jun Mat Min Sub Machines Accessed 10 | . 10 . . Terminals 8 | . 8 . . Fabricators . | . . . . Repair Stations . | . . . . Recycling Units 2 | . 2 . . Scanalyzers . | . . . . Garrison Access . | . . . . Total Hacks 20 | . 20 . . Successful 4 | . 4 . . Failed 16 | . 16 . . Catastrophic 2 | . 2 . . Database Lockouts . | . . . . Manual 18 | . 18 . . Terminals 18 | . 18 . . Fabricators . | . . . . Repair Stations . | . . . . Recycling Units 2 | . 2 . . Scanalyzers . | . . . . Garrison Access . | . . . . Terminal Hacks 2 | . 2 . . Robot Analysis 2 | . 2 . . Fabricator Hacks . | . . . . Repair Station Hacks . | . . . . Recycling Unit Hacks 2 | . 2 . . Retrieve Components 2 | . 2 . . Scanalyzer . | . . . . Garrison Access Hacks . | . . . . Unauthorized Hacks . | . . . . Terminals . | . . . . Fabricators . | . . . . Repair Stations . | . . . . Recycling Units . | . . . . Scanalyzers . | . . . . Garrison Access . | . . . . Data Cores Recovered . | . . . . Used . | . . . . Hacking Detections 8 | . 8 . . Full Trace Events . | . . . . Feedback Events . | . . . . Feedback Blocked . | . . . . Robot Schematics Acquired . | . . . . Robots Built . | . . . . Authchips . | . . . . Time . | . . . . Total Robot Build Rating . | . . . . Part Schematics Acquired . | . . . . Parts Built . | . . . . Authchips . | . . . . Time . | . . . . Total Part Build Rating . | . . . . Parts Repaired . | . . . . Time . | . . . . Parts Recycled . | . . . . Recycled Matter . | . . . . Retrieved Matter . | . . . . Retrieved Components 11 | . 11 . . Parts Scanalyzed . | . . . . Part Schematics Acquired . | . . . . Parts Damaged . | . . . . Bothacking | -11 -10 -10 -10 ------------ Run | Jun Mat Min Sub Used RIF Installer . | . . . . Robots Hacked . | . . . . Non-combat . | . . . . Combat . | . . . . Robot Hacks Applied . | . . . . Relay Couplers Released . | . . . . Fabnet Peak Effective % . | . . . . Robots Rewired . | . . . . Allies Hacked . | . . . . Hacks Repelled . | . . . . Allies | -11 -10 -10 -10 -------- Run | Jun Mat Min Sub Total Allies . | . . . . Largest Group . | . . . . Highest-Rated Group . | . . . . Highest-Rated Ally . | . . . . Total Orders . | . . . . Ally Attacks . | . . . . Total Damage . | . . . . Kills . | . . . . Allies Corrupted . | . . . . Allies Melted . | . . . . Intel | -11 -10 -10 -10 ------- Run | Jun Mat Min Sub Robot Analysis Total 2 | . 2 . . Derelict Logs Recovered 2 | . . 1 1 Drone Launches . | . . . . Drone Recoveries . | . . . . Exploration | -11 -10 -10 -10 ------------- Run | Jun Mat Min Sub Turns Passed 2587 | 15 1491 560 521 Spaces Moved 1328 | 3 719 323 283 Core . | . . . . Treads 1049 | . 443 323 283 Legs 279 | 3 276 . . Wheels . | . . . . Hover . | . . . . Flight . | . . . . Fastest Speed 120 | 120 120 160 160 Average Speed 164 | 120 168 160 161 Slowest Speed 240 | 120 240 240 240 Overloaded Moves . | . . . . Propulsion Burnouts . | . . . . Robots Hopped . | . . . . Cave-ins Triggered . | . . . . Exploration Rate (%) 43 | 2 94 55 23 Regions Visited 3 Branch Regions 2 Pre-discovered Areas 2 | . . 1 1 Known Exits Taken . | . . . . Unknown Exits Taken 3 | 1 1 1 . Scrap Searched . | . . . . Spaces Dug . | . . . . Terrain Destroyed 1 | . . . 1 Melee . | . . . . Projectile 1 | . . . 1 AOE . | . . . . Terrain Rammed . | . . . . Walls Destroyed . | . . . . Machines Disabled . | . . . . Actions | -11 -10 -10 -10 --------- Run | Jun Mat Min Sub Total 1525 | 6 861 345 313 Wait 36 | . 27 3 6 Move 1325 | 2 718 322 283 Hop . | . . . . Pick Up 20 | . 19 1 . Fast Attach 6 | . 4 2 . Attach 10 | . 7 1 2 Detach . | . . . . Swap 4 | . 1 . 3 Drop 13 | . 10 3 . Fire 111 | 4 75 13 19 Melee . | . . . . Ram . | . . . . Kick . | . . . . Crush . | . . . . Escape Stasis . | . . . . Rewire . | . . . . Trap . | . . . . Miscellaneous . | . . . . Route ------- -11/Junkyard -10/Materials (discovered 5 exits: [*Mat x3] / [*Min] / [*Sub]) -10/Mines -10/Subcaves History --------- Turn | Location | Event 14 | -11/Junkyard | Discovered new exit (range 0) 16 | -11/Junkyard | Entered Materials 152 | -10/Materials | Discovered new exit (range 16) 305 | -10/Materials | Build established: Mutant 577 | -10/Materials | Discovered new exit (range 13) 833 | -10/Materials | Discovered new exit (range 3) 959 | -10/Materials | Discovered new exit (range 11) 1163 | -10/Materials | Discovered new exit (range 16) 1507 | -10/Materials | Entered Mines 1538 | -10/Mines | Met a Derelict bent on vengeance 1686 | -10/Mines | Discovered new exit (range 8) 1722 | -10/Mines | Learned location of Zion (-6) 2067 | -10/Mines | Entered Subcaves 2092 | -10/Subcaves | Met a Zionite searching for "candidates" 2152 | -10/Subcaves | Disturbed a concealed Subdweller 2549 | -10/Subcaves | Core integrity fell below 50% 2580 | -10/Subcaves | Core integrity fell below 20% 2588 | -10/Subcaves | Destroyed by W0-WCD(R) with Subdweller Laser Last Messages --------------- Data stored: Storage entrances (x1). 02152_ JF-VP7(R) angrily emerges from the Twisted Machinery. 02162_ JF-VP7(R) destroyed. 02165_ Acquired 10 matter. 02518_ BQ-O3H(R) destroyed. 02524_ R7-EFI(R) destroyed. 02527_ Acquired 45 matter. 02529_ Acquired 1 matter. 02530_ Acquired 4 matter. 02535_ H3-4Q1(u) cries out in pain. 02535_ H3-4Q1(u) destroyed. 02538_ Acquired 4 matter. 02559_ W0-WCD(R) knocked back. 02562_ Lgt. Treads destroyed. 02566_ Critical hit (Destroy). 02566_ Hvy. EM Pulse Gun destroyed. 02568_ A0-341(R) knocked back. 02572_ Lgt. Treads destroyed. 02576_ Lgt. Cannon destroyed. 02578_ Acquired 2 matter. Map ----- +----------------------------------------------------+ | ???## """"" "##??????????????????????????????????? | | ???## ""### "##??????????????????????????????????? | | ???## "#####"###?????????????????????????????????? | | ???### # ##"###?????????????????????????????????? | | ???### ##?????????????????????????????????? | | ???## ### ####?????????????????????????????????? | | ???## ###########???????????????????????????????? | | ???## ######################????????????????????? | | ???### ##?#### #################????????????????? | | ???### ###### ## ### ## ##########????????????# | | ???### ##### #########?????##### | | ???## ### ## ## ### # #####????###### | | ???### ### ############### ##??##### | | ???### ## ################# # ###?##### | | ???## # #####???????????####### ###### | | ???## ###?????????????####### ##### #### | | ???## # ## ##?????????????????##### #### ##### | | ???###### ##?????????????????## ### ##"## | | ???####### ###########????????## ## ""# | | ??????### ##############?????### " """## | | ?????#### ### #### ####????## ####"" "###### | | ######## ###############%"######### | | ####### ############ #&["###??#### | | #### # ## ##=####*#&#""##??????? | | #### ##### ## R# #|##%########??????? | | #### ##### ###### @# # %!!### ####??????? | | #### ####??? ########## #####&##????????????? | | ### ####?????????## # %%#######????????????? | | ####??????? % #######????????????? | | ####????????## ## % ##?????????????????? | | ###?????????### # ##?????????????????? | | ##?????????? ##?????????????????? | | ###????????? ?????????????????? | | ###????????? # # # ??????????????????? | | ###?????????? ######### #????????????????? | | ####??????????# ######### ##????????????????? | | # ## ???????????????????########????????????????? | | # ???????????????????????#####????????????????? | | # ????????????????????????????????????????????? | | # ??? #??????????????????????????????????????? | | # ##??????????????????????????????????????? | | # ##??????????????????????????????????????? | | ??????????????????????????????????????? | | ??????????????????????????????????????? | | ??????????????????????????????????????? | | ??????????????????????????????????????? | | ##???????????????????????????????????????? | | ##???????????????????????????????????????? | | # ???????????????????????????????????????? | | ?? ????????????????????????????????????????? | +----------------------------------------------------+ Best States ------------- Heat Dissipation 25 Energy Generation 10 Energy Capacity 250 Matter Stores 300 Matter Capacity 300 Sight Range 16 Terrain Scan Density 10 Evasion (%) 55 Recoil Reduction 2 Item Schematics ----------------- None Robot Schematics ------------------ None Fabricated ------------ Nothing Alien Tech Used ----------------- None Achievements -------------- None Challenges ------------ None Game ------ Seed ComponentAssembledWeb Manual? 0 Play Time 00:26:43 Cumulative 172.2 hours Start 2023.11.08 @ 09:35:43 End 2023.11.08 @ 10:08:01 Sessions 1 Manual Loads 0 Difficulty Rogue Special Mode None Game No. 109 Rogue 109 Adventurer 0 Explorer 0 Win Type - Total 4 Types 3/0/1/0/0/0/0/0/0 Lore% 51 Gallery% 53 Achievement% 50 Wizard Run 0 Options --------- ASCII 0 Keyboard 0 Movement Mouse Keybinds 0 Fullscreen 1 Font 18/SmallcapsGlow Map View 76x50 Tactical HUD 1 Map Filters NONE Filters NONE Steam 1 RUN: df110676-4811-4f17-8734-ef45e4eb2096